bitfinex/quotes_SOLUSD_20251018
["timestamp","ask_amount","ask_price","bid_price","bid_amount"]
[1760798483500,0.66,186.26,186.14,10.87647521]
[1760798483691,22.88,186.25,186.15,18.80204135]
[1760798483892,0.66,186.24,186.15,5.37201181]
[1760798484076,0.66,186.23,186.15,5.37201181]
[1760798484277,0.66,186.22,186.15,5.37201181]
[1760798484479,0.66,186.21,186.12,13.4315842]
[1760798484676,0.66,186.2,186.12,13.4315842]
[1760798485574,0.66,186.2,186.12,18.80446191]
[1760798486291,0.66,186.19,186.08,22.88]
[1760798486477,0.66,186.18,186.08,22.88]
[1760798486796,0.66,186.18,186.09,18.80810359]
[1760798487580,0.66,186.2,186.09,18.80810359]
[1760798490412,23.54,186.19,186.09,18.80810359]
[1760798490704,0.66,186.18,186.09,18.80810359]
[1760798491888,0.66,186.2,186.09,18.80810359]
[1760798492097,0.66,186.2,186.09,25.40810359]
[1760798493190,0.66,186.19,186.09,25.40810359]
[1760798494306,23.54,186.19,186.09,25.40810359]
[1760798494692,0.66,186.18,186.09,25.40810359]
[1760798494899,0.66,186.18,186.09,11.97374388]
[1760798496588,0.66,186.18,186.09,25.40810359]
[1760798497707,0.66,186.18,186.09,11.97374388]
[1760798497888,0.66,186.17,186.09,11.97374388]
[1760798499197,0.66,186.17,186.09,25.40810359]
[1760798500692,23.54,186.19,186.09,25.40810359]
[1760798501091,0.66,186.18,186.09,25.40810359]
[1760798509516,22.88,186.19,186.09,25.40810359]
[1760798510016,23.6,186.19,186.09,25.40810359]
[1760798510316,22.88,186.19,186.09,25.40810359]
[1760798510624,0.72,186.18,186.09,25.40810359]
[1760798515218,22.88,186.19,186.09,25.40810359]
[1760798515911,23.6,186.19,186.09,25.40810359]
[1760798518606,22.88,186.19,186.1,10.87647521]
[1760798519128,23.6,186.19,186.1,10.87647521]
[1760798519627,22.88,186.19,186.11,18.80608241]
[1760798519804,22.88,186.22,186.11,18.80608241]
[1760798520005,0.72,186.2,186.11,25.40608241]
[1760798524023,22.88,186.23,186.12,10.87647521]
[1760798524230,22.88,186.23,186.12,17.47647521]
[1760798524535,22.88,186.23,186.12,10.87647521]
[1760798524730,0.72,186.24,186.12,10.87647521]
[1760798524931,25.68806884,186.27,186.11,11.9731664]
[1760798524932,23.6,186.23,186.11,11.9731664]
[1760798525116,22.88,186.19,186.11,5.3731664]
[1760798525317,0.72,186.18,186.11,5.3731664]
[1760798525648,0.66,186.17,186.11,5.3731664]
[1760798525817,0.66,186.16,186.11,5.3731664]
[1760798526132,0.66,186.15,186.03,26.87676132]
[1760798526315,0.66,186.14,186.04,10.87647521]
[1760798526511,0.66,186.14,186.05,22.88]
[1760798526716,0.66,186.14,186.04,10.87647521]
[1760798527013,0.66,186.14,186.05,22.88]
[1760798527208,0.66,186.14,186.06,18.81113619]
[1760798527613,0.66,186.16,186.09,22.88]
[1760798528030,0.66,186.18,186.09,22.88]
[1760798528333,22.88,186.19,186.09,22.88]
[1760798528528,0.66,186.17,186.09,22.88]
[1760798528918,0.66,186.17,186.1,5.37345513]
[1760798529124,0.66,186.16,186.1,5.37345513]
[1760798529428,0.66,186.15,186.1,5.37345513]
[1760798529629,0.66,186.14,186.1,5.37345513]
[1760798530019,0.66,186.13,186.0,5.37634408]
[1760798530345,0.66,186.12,186.0,5.37634408]
[1760798530521,0.66,186.11,186.03,22.88]
[1760798530723,0.66,186.1,185.99,5.57658462]
[1760798531020,33.75647521,186.08,185.99,0.2]
[1760798531533,0.66,186.07,185.99,0.2]
[1760798532847,0.66,186.07,185.99,5.57656022]
[1760798533148,0.66,186.06,185.99,5.57656022]
[1760798534334,0.71,186.09,186.0,10.87647521]
[1760798534754,0.71,186.09,186.0,33.75647521]
[1760798535329,0.71,186.09,186.01,18.81619267]
[1760798535549,0.71,186.08,186.0,22.88]
[1760798535719,0.71,186.07,186.0,22.88]
[1760798536047,0.71,186.06,186.0,22.88]
[1760798536244,0.71,186.06,186.0,28.25633506]
[1760798537628,0.71,186.05,185.99,5.57659095]
[1760798537828,22.88,186.07,185.99,5.57659095]
[1760798538029,0.71,186.06,185.99,5.57659095]
[1760798538342,0.71,186.05,185.99,0.2]
[1760798544850,0.71,186.05,185.99,5.57647382]
[1760798545542,0.71,186.04,185.99,5.57647382]
[1760798546245,0.71,186.06,185.99,5.57647382]
[1760798547073,0.71,186.06,185.99,19.0180567]
[1760798547868,0.71,186.08,185.99,19.0180567]
[1760798548364,0.71,186.08,185.99,25.6180567]
[1760798548666,0.71,186.11,185.99,25.6180567]
[1760798548855,0.71,186.11,186.03,22.88]
[1760798549055,0.71,186.11,186.03,29.48]
[1760798549764,0.71,186.11,186.03,22.88]
[1760798550368,22.88,186.13,186.04,18.81315845]
[1760798550553,0.71,186.12,186.04,18.81315845]
[1760798552261,0.71,186.14,186.04,18.81315845]
[1760798553070,23.59,186.14,186.04,18.81315845]
[1760798553573,0.71,186.14,186.04,18.81315845]
[1760798554071,0.71,186.14,186.04,25.41315845]
[1760798554486,0.71,186.14,186.07,22.88]
[1760798555769,38.06122283,186.18,186.07,22.88]
[1760798555770,0.71,186.17,186.08,5.37403267]
[1760798555971,0.71,186.17,186.07,29.48]
[1760798555972,0.71,186.16,186.07,29.48]
[1760798556153,22.88,186.14,186.03,34.85541044]
[1760798556360,11.58647521,186.13,186.0,5.37634408]
[1760798556557,10.87647521,186.11,186.0,5.37634408]
[1760798556769,0.71,186.1,186.03,22.88]
[1760798556945,0.71,186.09,186.03,22.88]
[1760798557150,0.71,186.08,186.0,5.37634408]
[1760798557564,0.71,186.08,186.03,22.88]
[1760798557753,0.71,186.07,186.03,22.88]
[1760798557968,0.71,186.07,186.02,5.3756701]
[1760798558448,0.71,186.1,186.02,5.3756701]
[1760798558961,0.71,186.1,186.02,18.81508521]
[1760798559368,0.71,186.09,186.02,5.3756701]
[1760798559556,0.71,186.08,186.02,5.3756701]
[1760798559960,0.71,186.1,186.02,5.3756701]
[1760798561161,0.71,186.09,186.02,5.3756701]
[1760798563780,0.69,186.13,186.02,25.41508521]
[1760798564285,0.69,186.12,186.02,25.41508521]
[1760798564472,0.69,186.11,186.02,25.41508521]
[1760798564672,0.69,186.13,186.02,25.41508521]
[1760798565578,23.57,186.15,186.05,22.88]
[1760798566288,22.88,186.15,186.05,22.88]
[1760798566481,0.69,186.14,186.05,22.88]
[1760798567085,0.69,186.14,186.06,5.37461034]
[1760798567252,0.69,186.14,186.06,11.97461034]
[1760798568965,0.69,186.14,186.06,25.41113619]
[1760798570480,0.69,186.16,186.06,25.41113619]
[1760798570866,32.59021009,186.18,186.06,25.41113619]
[1760798570867,10.87647521,186.17,186.06,25.41113619]
[1760798571074,0.69,186.15,186.06,25.41113619]
[1760798572475,10.87647521,186.13,186.05,22.88]
[1760798572680,0.69,186.12,186.04,5.37518813]
[1760798572881,0.69,186.11,186.04,5.37518813]
[1760798573084,0.69,186.13,186.04,5.37518813]
[1760798573983,23.57,186.13,186.03,18.81345381]
[1760798574765,22.88,186.13,186.03,18.81345381]
[1760798574978,0.69,186.12,186.03,18.81345381]
[1760798577192,23.57,186.13,186.03,18.81345381]
[1760798577894,23.57,186.13,186.03,25.41345381]
[1760798578591,0.69,186.12,186.03,25.41345381]
[1760798580297,33.75647521,186.17,186.06,22.88]
[1760798580482,22.88,186.15,186.06,22.88]
[1760798580682,0.69,186.16,186.06,29.48]
[1760798580990,0.69,186.15,186.06,29.48]
[1760798581193,0.69,186.14,186.06,29.48]
[1760798582885,0.69,186.14,186.07,5.37432149]
[1760798584496,0.69,186.14,186.07,18.81012521]
[1760798586484,11.59647521,186.18,186.07,18.81012521]
[1760798586798,0.72,186.17,186.07,18.81012521]
[1760798586978,0.72,186.16,186.07,18.81012521]
[1760798587579,10.87647521,186.18,186.07,18.81012521]
[1760798587781,0.72,186.17,186.07,18.81012521]
[1760798588383,10.87647521,186.18,186.07,18.81012521]
[1760798588601,0.72,186.17,186.07,18.81012521]
[1760798588800,10.87647521,186.18,186.07,18.81012521]
[1760798589011,0.72,186.16,186.07,18.81012521]
[1760798589680,0.72,186.16,186.07,25.41012521]
[1760798589880,10.87647521,186.18,186.07,25.41012521]
[1760798590085,0.72,186.16,186.07,25.41012521]
[1760798590304,16.24767526,186.18,186.07,25.41012521]
[1760798590605,0.72,186.15,186.07,25.41012521]
[1760798591294,0.72,186.14,186.07,25.41012521]
[1760798596000,0.69,186.13,186.07,11.97432149]
[1760798596209,0.69,186.12,186.06,28.25453768]
[1760798596506,0.69,186.11,186.06,5.37453768]
[1760798596685,0.69,186.13,186.06,5.37453768]
[1760798597082,0.69,186.12,186.06,5.37453768]
[1760798598093,0.69,186.12,186.04,18.81257064]
[1760798600214,0.69,186.14,186.04,18.81257064]
[1760798600911,0.69,186.13,186.04,18.81257064]
[1760798601100,39.12795709,186.17,186.04,18.81257064]
[1760798601101,0.69,186.12,186.04,18.81257064]
[1760798601303,0.69,186.11,186.04,18.81257064]
[1760798601496,0.69,186.11,186.04,25.41257064]
[1760798601999,0.69,186.1,186.04,5.37518813]
[1760798602204,0.69,186.09,186.04,5.37518813]
[1760798602516,0.69,186.11,186.04,5.37518813]
[1760798604211,0.69,186.1,186.04,5.37518813]
[1760798605316,5.37235975,186.14,186.04,5.37518813]
[1760798605523,0.69,186.13,186.04,5.37518813]
[1760798605725,0.69,186.12,186.04,5.37518813]
[1760798607620,0.69,186.12,186.04,18.81315845]
[1760798610322,0.69,186.12,186.04,25.41315845]
[1760798611726,0.69,186.11,186.04,11.97518813]
[1760798611931,0.69,186.1,186.04,11.97518813]
[1760798612134,5.37230041,186.14,186.04,5.37518813]
[1760798612304,0.69,186.09,186.04,5.37518813]
[1760798614420,0.69,186.08,185.99,13.64147162]
[1760798614608,0.69,186.07,185.99,13.64147162]
[1760798614809,0.69,186.06,186.0,5.37634408]
[1760798615041,10.87647521,186.09,185.99,0.2]
[1760798615042,0.69,186.05,185.99,0.2]
[1760798615703,10.87647521,186.04,185.99,0.2]
[1760798616005,0.69,186.03,185.99,0.2]
[1760798616316,0.69,186.02,185.99,0.2]
[1760798616516,0.69,186.01,185.99,0.2]
[1760798619112,13.68777852,186.05,185.99,0.2]
[1760798619308,0.69,186.0,185.99,0.2]
[1760798620430,0.69,186.02,185.99,0.2]
[1760798620642,0.69,186.01,185.99,0.2]
[1760798623439,0.65,186.04,185.99,0.2]
[1760798623614,0.65,186.03,185.99,0.2]
[1760798627857,10.87647521,186.05,185.99,0.2]
[1760798628031,0.65,186.04,185.99,0.2]
[1760798630847,10.87647521,186.03,185.99,0.2]
[1760798631032,0.65,186.02,185.99,0.2]
[1760798633047,10.87647521,186.01,185.99,0.2]
[1760798633241,0.65,186.0,185.93,0.2]
[1760798633960,10.87647521,185.99,185.93,0.2]
[1760798634133,0.65,185.98,185.93,0.2]
[1760798640031,10.87647521,185.97,185.93,0.2]
[1760798640338,0.65,185.96,185.93,0.2]
[1760798641456,27.25487667,186.0,185.93,0.2]
[1760798641457,0.65,185.95,185.93,0.2]
[1760798641953,10.87647521,185.99,185.93,0.2]
[1760798642258,0.65,185.94,185.93,0.2]
[1760798642752,0.65,185.96,185.93,0.2]
[1760798642943,0.65,185.95,185.93,0.2]
[1760798645045,10.87647521,185.99,185.93,0.2]
[1760798645253,0.65,185.98,185.93,0.2]
[1760798646555,0.71,186.0,185.93,5.57829408]
[1760798646754,0.71,186.0,185.93,19.02421458]
[1760798647343,0.71,186.02,185.93,19.02421458]
[1760798647548,0.71,186.01,185.93,19.02421458]
[1760798648548,0.71,186.01,185.96,22.88]
[1760798648749,0.71,186.01,185.97,5.37721137]
[1760798648947,0.71,186.04,185.97,5.37721137]
[1760798649169,0.71,186.04,185.97,18.82023981]
[1760798649675,0.71,186.03,185.97,18.82023981]
[1760798650142,0.71,186.06,185.97,18.82023981]
[1760798650654,0.71,186.05,185.97,18.82023981]
[1760798652948,22.88,186.1,186.0,22.88]
[1760798653145,0.71,186.09,186.0,29.48]
[1760798653344,0.66,186.08,186.0,29.48]
[1760798654063,0.66,186.08,186.01,5.37605505]
[1760798655151,0.66,186.08,186.01,18.81619267]
[1760798655351,0.66,186.1,186.01,18.81619267]
[1760798655577,0.66,186.09,186.01,18.81619267]
[1760798657580,0.66,186.09,186.01,25.41619267]
[1760798662263,0.66,186.11,186.01,25.41619267]
[1760798662468,2.81042597,186.12,186.01,25.41619267]
[1760798662769,0.66,186.11,186.01,25.41619267]
[1760798663158,0.66,186.1,186.01,25.41619267]
[1760798663361,0.66,186.09,186.01,25.41619267]
[1760798663661,0.66,186.08,186.01,11.97605505]
[1760798663972,0.66,186.07,186.01,11.97605505]
[1760798664268,0.66,186.06,186.01,11.97605505]
[1760798666289,0.66,186.05,186.01,6.6]
[1760798666477,0.66,186.04,186.01,6.6]
[1760798666694,0.66,186.03,186.01,6.6]
[1760798666861,0.66,186.02,185.93,16.36771307]
[1760798667209,33.75647521,186.05,185.93,16.36771307]
[1760798667210,0.66,186.01,185.93,0.2]
[1760798667493,10.87647521,186.0,185.93,0.2]
[1760798667781,0.66,185.99,185.93,0.2]
[1760798669165,0.66,185.99,185.93,5.57831938]
[1760798671799,0.66,186.02,185.93,19.02423988]
[1760798672103,0.66,186.03,185.93,41.90423988]
[1760798672480,0.66,186.03,185.93,48.50423988]
[1760798675900,10.87647521,186.05,185.93,48.50423988]
[1760798676201,0.66,186.03,185.93,48.50423988]
[1760798676998,0.66,186.02,185.93,48.50423988]
[1760798678286,0.66,186.01,185.93,48.50423988]
[1760798684698,0.68,186.0,185.93,35.05831938]
[1760798684876,0.68,185.99,185.93,35.05831938]
[1760798685077,0.68,185.99,185.93,12.17831938]
[1760798688406,0.68,185.98,185.93,12.17831938]
[1760798688603,5.37610247,186.01,185.93,12.17831938]
[1760798688793,0.68,186.0,185.93,12.17831938]
[1760798689404,0.68,185.99,185.93,0.2]
[1760798689601,33.75647521,185.98,185.93,0.2]
[1760798689800,0.68,185.97,185.93,0.2]
[1760798689997,6.05725113,185.97,185.93,0.2]
[1760798690199,10.87647521,185.96,185.93,0.2]
[1760798690400,10.87647521,185.96,185.88,6.6]
[1760798690601,0.68,185.95,185.88,22.88]
[1760798690801,0.68,185.94,185.88,22.88]
[1760798691191,16.25418746,185.96,185.85,6.8]
[1760798691395,0.68,185.93,185.85,0.2]
[1760798692214,0.68,185.93,185.85,28.46066149]
[1760798692503,0.68,185.92,185.85,0.2]
[1760798693202,10.87647521,185.91,185.85,0.2]
[1760798693503,0.68,185.9,185.85,0.2]
[1760798698690,0.68,185.91,185.85,5.58065254]
[1760798699003,22.88,185.91,185.85,5.58065254]
[1760798699203,33.75647521,185.94,185.85,5.58065254]
[1760798699414,0.68,185.92,185.85,5.58065254]
[1760798700312,10.87647521,185.97,185.85,19.0323609]
[1760798700491,0.68,185.96,185.85,19.0323609]
[1760798700689,22.88,185.95,185.85,32.68472581]
[1760798700908,5.37605505,186.01,185.86,10.87647521]
[1760798701099,0.68,185.99,185.89,22.88]
[1760798701516,0.68,185.98,185.89,22.88]
[1760798701803,33.75647521,186.0,185.89,22.88]
[1760798701804,0.68,185.97,185.89,22.88]
[1760798702010,10.87647521,185.95,185.85,19.0323609]
[1760798702310,0.68,185.94,185.85,19.0323609]
[1760798702714,33.75647521,185.95,185.85,19.0323609]
[1760798702894,0.68,185.94,185.85,19.0323609]
[1760798703209,22.88,185.95,185.85,19.0323609]
[1760798703723,0.68,185.97,185.85,19.0323609]
[1760798703895,22.88,185.96,185.85,19.0323609]
[1760798704095,23.56,185.96,185.85,19.0323609]
[1760798704804,17.76864259,186.02,185.88,22.88]
[1760798704805,23.56,185.97,185.88,22.88]
[1760798705717,23.56,185.97,185.89,18.82833933]
[1760798706589,22.88,185.99,185.89,25.42833933]
[1760798707097,0.67,185.98,185.89,25.42833933]
[1760798708014,23.55,185.99,185.89,25.42833933]
[1760798708522,0.67,185.99,185.89,25.42833933]
[1760798708906,0.67,185.99,185.92,22.88]
[1760798709107,0.67,186.01,185.92,22.88]
[1760798709306,0.67,186.01,185.92,29.48]
[1760798709821,22.88,186.02,185.92,29.48]
[1760798710023,11.54647521,186.01,185.91,5.37889905]
[1760798710210,0.67,186.0,185.91,18.82626605]
[1760798710523,22.88,185.98,185.91,18.82626605]
[1760798710857,0.67,185.99,185.91,18.82626605]
[1760798711195,0.67,185.98,185.91,18.82626605]
[1760798711608,0.67,185.97,185.91,18.82626605]
[1760798711815,0.67,185.97,185.91,25.42626605]
[1760798715621,10.87647521,186.0,185.91,25.42626605]
[1760798715924,0.66,185.99,185.91,25.42626605]
[1760798716223,0.66,185.98,185.91,25.42626605]
[1760798718022,23.54,186.0,185.91,25.42626605]
[1760798718709,0.66,185.99,185.91,25.42626605]
[1760798724828,23.54,186.03,185.91,52.32100006]
[1760798725033,0.66,186.02,185.91,52.32100006]
[1760798725209,0.66,186.02,185.91,68.4913275]
[1760798725534,0.66,186.02,185.91,52.32100006]
[1760798725915,0.66,186.02,185.92,16.17032744]
[1760798726314,2.81149628,186.05,185.92,22.77032744]
[1760798726517,16.17032744,186.11,185.97,22.88]
[1760798726518,0.66,186.09,185.97,22.88]
[1760798726836,0.66,186.09,186.01,22.88]
[1760798727140,0.66,186.08,185.98,29.48]
[1760798727306,0.66,186.07,185.98,45.64335766]
[1760798727509,0.66,186.06,185.98,29.48]
[1760798727938,0.66,186.06,185.98,45.64597063]
[1760798728232,0.66,186.09,185.99,18.81821603]
[1760798728430,23.54,186.11,185.99,18.81821603]
[1760798729040,0.66,186.1,185.99,18.81821603]
[1760798729219,0.66,186.1,186.0,16.16335766]
[1760798729942,0.1,186.12,186.01,10.87647521]
[1760798730248,0.1,186.12,186.01,18.81619267]
[1760798730249,0.66,186.11,186.01,18.81619267]
[1760798730542,0.66,186.1,186.01,18.81619267]
[1760798731515,0.66,186.11,186.01,18.81619267]
[1760798731716,0.1,186.12,186.01,25.41619267]
[1760798732022,0.66,186.11,186.01,25.41619267]
[1760798732230,0.66,186.1,186.01,25.41619267]
[1760798733310,0.1,186.12,186.01,25.41619267]
[1760798733311,0.66,186.09,186.03,22.88]
[1760798733539,0.66,186.08,186.03,28.25539051]
[1760798733743,0.66,186.07,186.03,28.25539051]
[1760798738135,5.37325526,186.11,186.03,5.37539051]
[1760798738341,11.53647521,186.1,186.03,5.37539051]
[1760798738635,0.66,186.09,186.03,5.37539051]
[1760798739027,0.66,186.08,186.03,5.37539051]
[1760798739343,0.66,186.08,186.0,18.81650015]
[1760798740438,0.66,186.08,186.0,25.41650015]
[1760798742038,0.66,186.07,186.0,11.97634408]
[1760798742248,0.66,186.06,186.0,5.37634408]
[1760798742426,10.87647521,186.07,186.0,5.37634408]
[1760798742749,0.66,186.05,186.0,5.37634408]
[1760798743239,0.66,186.05,185.97,20.04236883]
[1760798743240,0.66,186.05,185.98,5.37692224]
[1760798746449,10.87647521,186.07,185.96,6.6]
[1760798746450,0.67,186.04,185.96,6.6]
[1760798746750,0.67,186.03,185.96,11.97738289]
[1760798748362,0.67,186.03,185.96,25.42113423]
[1760798749253,0.67,186.02,185.96,11.97738289]
[1760798749433,0.67,186.01,185.96,5.37738289]
[1760798749632,0.67,186.03,185.96,5.37738289]
[1760798749949,33.75647521,186.06,185.96,5.37738289]
[1760798750146,0.67,186.02,185.96,5.37738289]
[1760798750342,0.67,186.02,185.95,18.82226404]
[1760798754551,0.67,186.04,185.95,18.82226404]
[1760798754924,33.75647521,186.06,185.95,18.82226404]
[1760798755328,34.42647521,186.06,185.95,25.42226404]
[1760798755529,0.67,186.05,185.95,25.42226404]
[1760798759954,0.67,186.04,185.95,25.42226404]
[1760798761443,0.67,186.05,185.95,25.42226404]
[1760798763034,0.67,186.04,185.95,25.42226404]
[1760798764246,34.42647521,186.06,185.95,25.42226404]
[1760798764437,33.75647521,186.06,185.95,25.42226404]
[1760798764639,0.67,186.05,185.95,25.42226404]
[1760798765247,0.67,186.08,185.98,22.88]
[1760798765448,0.67,186.08,185.98,29.48]
[1760798765958,10.87647521,186.06,185.95,5.37778972]
[1760798766152,10.87647521,186.02,185.94,5.37804274]
[1760798766458,0.71,186.01,185.9,13.44809037]
[1760798766666,0.71,186.0,185.93,22.88]
[1760798767357,0.71,185.99,185.9,18.82732651]
[1760798767559,0.71,185.98,185.9,18.82732651]
[1760798767748,16.25234681,186.02,185.9,18.82732651]
[1760798768067,10.87647521,186.0,185.9,18.82732651]
[1760798768263,10.87647521,186.0,185.9,13.44809037]
[1760798768444,10.87647521,186.02,185.9,13.44809037]
[1760798768762,10.87647521,186.0,185.9,13.44809037]
[1760798768963,0.71,185.99,185.9,13.44809037]
[1760798769356,0.71,186.01,185.9,13.44809037]
[1760798770363,0.71,186.0,185.9,13.44809037]
[1760798770537,0.71,185.99,185.9,13.44809037]
[1760798771374,10.87647521,186.01,185.9,13.44809037]
[1760798771658,16.25196643,186.03,185.9,13.44809037]
[1760798771659,10.87647521,186.03,185.9,13.44809037]
[1760798771964,0.71,186.02,185.9,13.44809037]
[1760798772162,0.71,186.02,185.93,22.88]
[1760798772546,0.71,186.02,185.94,18.82327632]
[1760798772748,0.71,186.02,185.94,25.42327632]
[1760798774983,0.66,186.06,185.94,25.42327632]
[1760798775146,0.66,186.05,185.94,25.42327632]
[1760798775345,0.66,186.04,185.94,25.42327632]
[1760798775763,22.88,186.07,185.94,25.42327632]
[1760798775966,23.54,186.07,185.97,22.88]
[1760798776470,0.66,186.07,185.97,29.48]
[1760798776765,0.66,186.06,185.97,6.6]
[1760798776967,10.87647521,186.04,185.98,5.37692224]
[1760798777174,0.66,186.03,185.98,5.37692224]
[1760798777352,23.54,186.06,185.98,5.37692224]
[1760798777552,23.54,186.06,185.98,11.97692224]
[1760798778965,22.88,186.06,185.98,11.97692224]
[1760798779178,11.53647521,186.05,185.98,11.97692224]
[1760798779356,0.66,186.04,185.98,11.97692224]
[1760798779556,0.66,186.03,185.98,11.97692224]
[1760798781868,0.66,186.03,185.98,5.37692224]
[1760798782175,10.87647521,186.05,185.98,5.37692224]
[1760798782374,11.53647521,186.05,185.98,5.37692224]
[1760798782749,0.66,186.04,185.98,5.37692224]
[1760798783479,0.66,186.04,185.95,22.88]
[1760798784678,23.54,186.07,185.95,6.6]
[1760798784979,23.54,186.07,185.97,22.88]
[1760798785469,23.54,186.07,185.98,18.81922786]
[1760798786075,11.53647521,186.1,185.98,45.7038391]
[1760798786392,0.66,186.09,185.98,52.3038391]
[1760798786777,0.66,186.09,186.01,22.88]
[1760798787075,0.66,186.11,186.01,29.48]
[1760798787260,0.66,186.11,186.02,18.81518115]
[1760798787454,10.87647521,186.08,186.02,6.6]
[1760798787657,10.87647521,186.08,185.95,27.36]
[1760798787658,10.87647521,186.06,185.97,5.37721137]
[1760798787872,0.66,186.06,185.97,11.97721137]
[1760798788859,11.53647521,186.08,185.97,25.42023981]
[1760798789272,0.66,186.07,185.97,25.42023981]
[1760798790486,0.66,186.07,185.97,52.3062967]
[1760798792569,11.53647521,186.09,185.97,52.3062967]
[1760798792769,0.66,186.08,185.97,52.3062967]
[1760798793094,0.66,186.1,186.0,22.88]
[1760798793410,0.66,186.1,186.0,29.48]
[1760798794080,23.54,186.1,186.01,18.81619267]
[1760798794285,0.66,186.1,186.01,18.81619267]
[1760798794498,0.66,186.1,186.01,25.41619267]
[1760798795267,0.66,186.09,186.01,25.41619267]
[1760798796889,0.66,186.11,186.01,52.29646792]
[1760798797071,0.1,186.12,186.02,10.87647521]
[1760798797279,0.1,186.12,186.02,21.75295042]
[1760798798186,0.1,186.12,186.02,10.87647521]
[1760798798399,0.1,186.12,186.05,18.81214727]
[1760798798685,0.1,186.12,186.05,25.41214727]
[1760798800091,0.1,186.12,186.06,10.87647521]
[1760798800270,0.1,186.12,186.09,22.88]
[1760798800588,0.1,186.12,186.09,29.48]
[1760798801789,0.1,186.12,186.1,5.37345513]
[1760798803283,0.71,186.11,186.1,22.88]
[1760798803476,0.1,186.12,186.1,22.88]
[1760798803680,0.81,186.12,186.08,5.37403267]
[1760798805178,0.1,186.12,186.08,5.37403267]
[1760798807199,0.71,186.11,186.08,5.37403267]
[1760798807492,0.1,186.12,186.08,5.37403267]
[1760798807695,0.81,186.12,186.08,5.37403267]
[1760798808186,0.81,186.12,186.06,13.43586545]
[1760798809502,0.81,186.12,186.07,22.88]
[1760798810190,0.71,186.11,186.07,22.88]
[1760798810383,0.71,186.11,186.01,10.87647521]
[1760798810384,0.71,186.1,186.01,11.97601406]
[1760798810590,0.71,186.09,186.04,22.88]
[1760798810781,0.71,186.11,186.04,22.88]
[1760798812983,0.71,186.11,186.05,5.37489922]
[1760798813885,0.71,186.1,186.05,5.37489922]
[1760798814089,0.71,186.09,186.05,5.37489922]
[1760798815502,0.71,186.09,186.05,11.97489922]
[1760798816299,0.1,186.12,186.05,11.97489922]
[1760798816501,0.71,186.11,186.05,11.97489922]
[1760798819295,0.1,186.12,186.05,11.97489922]
[1760798820506,0.1,186.12,186.05,25.41214727]
[1760798820888,0.81,186.12,186.05,25.41214727]
[1760798821088,0.1,186.12,186.05,25.41214727]
[1760798830022,0.1,186.12,186.05,52.28664337]
[1760798831405,0.1,186.12,186.06,27.34]
[1760798831809,0.76,186.12,186.06,27.34]
[1760798832211,0.76,186.12,186.07,18.81012521]
[1760798832704,0.1,186.12,186.07,18.81012521]
[1760798833516,0.66,186.11,186.07,18.81012521]
[1760798833718,0.66,186.1,186.07,18.81012521]
[1760798833902,0.66,186.09,186.07,5.37432149]
[1760798834097,0.66,186.11,186.07,5.37432149]
[1760798834302,0.66,186.1,186.07,5.37432149]
[1760798834819,0.66,186.09,186.07,5.37432149]
[1760798835416,0.66,186.11,186.07,5.37432149]